{"text_format":"2","workbook":"xlsx","n_sheets":2,"sheets":["Anleitung","Übersicht"],"not_rendered":{"charts":0,"images":0,"macros":0,"external_links":0,"defined_names":1,"comments":0,"pivot_tables":0},"unopened":[],"bounds":{"document_bytes":16777216,"sheet_cells":100000,"run_cost":"one","rows_first":2000,"rows_last":500,"rows_between":2000,"halvings":0,"cell_chars":16384,"cell_head_chars":4096},"cells_cut":0,"cells_raw":0,"read":"whole","date_system":"1900"}

{"sheet":"Anleitung","index":0,"n_rows":23,"n_cols":2,"rows_kept":23,"cut":false,"hidden":false,"merged":[]}
[]
[null,"Personalkosten NKBF 2017.xlsx: Anleitung"]
[]
[null,"Wozu?"]
[]
[null,"Dieses Formular wurde von PtJ erstellt zur Personalkostenabrechnung bei pauschalierter Abrechnung gem. Nr. 2.4 NKBF 2017."]
[]
[]
[null,"Benutzung"]
[]
[null,"Stundennachweis NKBF 2017.xlsx ersetzt die Anlagen 1 und 2 (Stundennachweise, Ermittlung des Jahresstundensatzes)."]
[null,"Erstellen Sie Kopien für jede(n) Mitarbeiter(in) und erfassen Sie wie bisher die produktiven Stunden,"]
[null,"die sonstigen Stunden, den Jahresbruttolohn und die theoretisch mögliche Arbeitszeit (z.B. bei 40 Wochenstunden = 2080 h)."]
[null,"Wochenenden und bundesweite Feiertage sind in der Vorlage bereits farblich hervorgehoben. \n"]
[null,"Bitte achten Sie selbst auf regionale gesetzliche Feiertage."]
[]
[null,"Personalkosten NKBF 2017.xlsx ersetzt die Anlage 3 und dient dazu, die Werte aus den Stundennachweisen zusammenzurechnen."]
[null,"Übernehmen Sie Jahresstundensatz und vorhabenbezogene Stunden jeweils aus Stundennachweis NKBF 2017.xlsx"]
[null,"Schicken Sie die ausgefüllte Personalkosten NKBF 2017.xlsx bitte per E-Mail zurück an Ihre(n) administrative(n) Betreuer(in) beim Projektträger."]
[null,"Das unterschriebene Formular \"Übersicht Personalkosten\" fügen Sie bitte dem Verwendungsnachweis bei."]
[]
[null,"Arbeitszeit an Wochenenden / Feiertagen ist nur in begründeten Ausnahmefällen zuwendungsfähig - falls Sie solche Zeiten abrechnen, "]
[null,"fügen Sie der E-Mail bitte die Begründung bei."]

{"sheet":"Übersicht","index":1,"n_rows":43,"n_cols":7,"rows_kept":43,"cut":false,"hidden":false,"merged":[]}
[]
[null,"Übersicht Personalkosten bei pauschalierter Abrechnung"]
[null,"gemäß Nr. 2.4 NKBF 2017 (Anlage 3 zum Verwendungsnachweis)"]
[]
[{"$nulls":4},"Zuwendungsempfänger:  "]
[{"$nulls":4},"Förderkennzeichen:  "]
[{"$nulls":4},"Jahr:  "]
[]
[]
[null,"Pos. F0831: Sozialversicherungspflichtige Beschäftigte"]
[null,"Nr.","Mitarbeiter/in\n(Name, Vorname, Berufsbezeichnung)","Abrechnungsfähiger Zeitraum\nvon - bis","Jahres-\nstunden-\nsatz","Abgerechnete vorhabenbezogene produktive Jahresstunden","Abrechnungs-\nfähige Personal-einzelkosten"]
[null,"1","Mustermann, Petra, Diplom-Ingenieurin","01.10.2019 - 31.12.2019",55,1320,{"$f":"Übersicht0831[[#This Row],[Jahres-\nstunden-\nsatz]]*Übersicht0831[[#This Row],[Abgerechnete vorhabenbezogene produktive Jahresstunden]]","v":72600}]
[null,"2",{"$nulls":4},{"$f":"Übersicht0831[[#This Row],[Jahres-\nstunden-\nsatz]]*Übersicht0831[[#This Row],[Abgerechnete vorhabenbezogene produktive Jahresstunden]]","v":0}]
[null,"3",{"$nulls":4},{"$f":"Übersicht0831[[#This Row],[Jahres-\nstunden-\nsatz]]*Übersicht0831[[#This Row],[Abgerechnete vorhabenbezogene produktive Jahresstunden]]","v":0}]
[null,"4",{"$nulls":4},{"$f":"Übersicht0831[[#This Row],[Jahres-\nstunden-\nsatz]]*Übersicht0831[[#This Row],[Abgerechnete vorhabenbezogene produktive Jahresstunden]]","v":0}]
[null,"5",{"$nulls":4},{"$f":"Übersicht0831[[#This Row],[Jahres-\nstunden-\nsatz]]*Übersicht0831[[#This Row],[Abgerechnete vorhabenbezogene produktive Jahresstunden]]","v":0}]
[null,"6",{"$nulls":4},{"$f":"Übersicht0831[[#This Row],[Jahres-\nstunden-\nsatz]]*Übersicht0831[[#This Row],[Abgerechnete vorhabenbezogene produktive Jahresstunden]]","v":0}]
[null,"7",{"$nulls":4},{"$f":"Übersicht0831[[#This Row],[Jahres-\nstunden-\nsatz]]*Übersicht0831[[#This Row],[Abgerechnete vorhabenbezogene produktive Jahresstunden]]","v":0}]
[null,"8",{"$nulls":4},{"$f":"Übersicht0831[[#This Row],[Jahres-\nstunden-\nsatz]]*Übersicht0831[[#This Row],[Abgerechnete vorhabenbezogene produktive Jahresstunden]]","v":0}]
[null,"9",{"$nulls":4},{"$f":"Übersicht0831[[#This Row],[Jahres-\nstunden-\nsatz]]*Übersicht0831[[#This Row],[Abgerechnete vorhabenbezogene produktive Jahresstunden]]","v":0}]
[null,"10",{"$nulls":4},{"$f":"Übersicht0831[[#This Row],[Jahres-\nstunden-\nsatz]]*Übersicht0831[[#This Row],[Abgerechnete vorhabenbezogene produktive Jahresstunden]]","v":0}]
[null,"11",{"$nulls":4},{"$f":"Übersicht0831[[#This Row],[Jahres-\nstunden-\nsatz]]*Übersicht0831[[#This Row],[Abgerechnete vorhabenbezogene produktive Jahresstunden]]","v":0}]
[null,"12",{"$nulls":4},{"$f":"Übersicht0831[[#This Row],[Jahres-\nstunden-\nsatz]]*Übersicht0831[[#This Row],[Abgerechnete vorhabenbezogene produktive Jahresstunden]]","v":0}]
[{"$nulls":5},"  Summe der Personaleinzelkosten  ",{"$f":"SUBTOTAL(109,Übersicht0831[Abrechnungs-\nfähige Personal-einzelkosten])","v":72600}]
[{"$nulls":5},"Pauschalzuschlag (100% der Personaleinzelkosten):",{"$f":"INDIRECT(\"G\"&ROW()-1)","v":72600}]
[{"$nulls":5},"Zwischensumme Pos. F0831:",{"$f":"INDIRECT(\"G\"&ROW()-2)+INDIRECT(\"G\"&ROW()-1)","v":145200}]
[]
[]
[null,"Pos. F0835: Nicht sozialversicherungspflichtige Beschäftigte"]
[null,"Nr.","Mitarbeiter/in\n(Name, Vorname, Berufsbezeichnung)","Abrechnungsfähiger Zeitraum\nvon - bis","Jahres-\nstunden-\nsatz","Abgerechnete vorhabenbezogene produktive Jahresstunden","Abrechnungs-\nfähige Personal-einzelkosten"]
[null,1,{"$nulls":4},{"$f":"Übersicht0835[[#This Row],[Jahres-\nstunden-\nsatz]]*Übersicht0835[[#This Row],[Abgerechnete vorhabenbezogene produktive Jahresstunden]]","v":0}]
[null,2,{"$nulls":4},{"$f":"Übersicht0835[[#This Row],[Jahres-\nstunden-\nsatz]]*Übersicht0835[[#This Row],[Abgerechnete vorhabenbezogene produktive Jahresstunden]]","v":0}]
[null,3,{"$nulls":4},{"$f":"Übersicht0835[[#This Row],[Jahres-\nstunden-\nsatz]]*Übersicht0835[[#This Row],[Abgerechnete vorhabenbezogene produktive Jahresstunden]]","v":0}]
[{"$nulls":5}," Zwischensumme Pos. F0835 ",{"$f":"SUBTOTAL(109,Übersicht0835[Abrechnungs-\nfähige Personal-einzelkosten])","v":0}]
[]
[{"$nulls":5},"Summe",{"$f":"Übersicht0831[[#Totals],[Abrechnungs-\nfähige Personal-einzelkosten]]*2+Übersicht0835[[#Totals],[Abrechnungs-\nfähige Personal-einzelkosten]]","v":145200}]
[]
[null,"Ich/Wir bestätige(n), dass die Angaben mit den\n Belegunterlagen übereinstimmen."]
[]
[]
[]
[]
[null,null,null,"Ort, Datum",null,"Unterschrift"]